fUSD/lending_fUSD_20260109
["ID","MTS","AMOUNT","RATE_DAILY","PERIOD"]
[401152046,1767983433346,-152.0,0.00016181,3]
[401152047,1767983433356,-58945.53522276,0.00016228,2]
[401152048,1767983433439,-7861.63465038,0.00016228,2]
[401152049,1767983433456,-356.82273408,0.00016228,2]
[401152050,1767983433538,-590.2430935,0.00016228,2]
[401152051,1767983433617,-2804.83393608,0.00016228,2]
[401152053,1767983438275,-4465.30385842,0.00016228,2]
[401152054,1767983438287,-15278.93951525,0.00016228,2]
[401152055,1767983438299,-4178.73800293,0.00016228,2]
[401152056,1767983438311,-12088.09938705,0.00016228,2]
[401152057,1767983438323,-6925.91679383,0.00016228,2]
[401152059,1767983438438,-7389.36454677,0.00016228,2]
[401152061,1767983438452,-5292.4997,0.00016228,2]
[401152062,1767983438463,-2576.0915,0.00016228,2]
[401152091,1767983440314,-614.08054182,0.00016228,2]
[401152092,1767983440325,-3105.78771883,0.00016228,2]
[401152093,1767983440336,-1650.99640451,0.00016228,2]
[401152094,1767983440412,-9735.87651754,0.00016228,2]
[401152095,1767983440423,-18872.80445432,0.00016228,2]
[401152096,1767983440434,-837266.43142193,0.00016228,2]
[401152097,1767983440446,-6709.59935273,0.00016238,2]
[401152098,1767983440458,-915.11,0.00016238,2]
[401152099,1767983440467,-776.6986,0.00016238,2]
[401152100,1767983440476,-236.5897,0.00016238,2]
[401152101,1767983440486,-863.02,0.00016328,2]
[401152102,1767983440497,-5469.63784536,0.00016328,2]
[401152103,1767983440506,-150.0,0.00016328,2]
[401152104,1767983440517,-406.503584,0.00016387,2]
[401152105,1767983440526,-152.0,0.00016391,4]
[401152106,1767983440535,-4033.45139194,0.00016471,2]
[401152107,1767983440544,-649.24,0.00016482,2]
[401152108,1767983440553,-1100.0,0.00016494,2]
[401152109,1767983440562,-1000.0,0.00016515,2]
[401152110,1767983440572,-151.83,0.00016567,2]
[401152111,1767983440581,-152.0,0.00016602,5]
[401152112,1767983440590,-4033.45139194,0.00016649,2]
[401152113,1767983440599,-214.43976733,0.000167,2]
[401152114,1767983440607,-1680.0,0.00016745,2]
[401152115,1767983440617,-1000.0,0.000168,2]
[401152116,1767983440626,-152.0,0.00016813,6]
[401152117,1767983440635,-4033.45139194,0.00016828,2]
[401152118,1767983440644,-438.4627963,0.00016899,2]
[401152120,1767983440653,-4395.24,0.00016986,2]
[401152121,1767983440662,-250.0,0.00017,2]
[401152123,1767983440671,-4033.45139194,0.00017007,2]
[401152125,1767983440681,-152.0,0.00017023,7]
[401152127,1767983440690,-965.64,0.00017041,2]
[401152129,1767983440699,-159.10718444,0.00017072,2]
[401152131,1767983440709,-322.6107,0.00017099,2]
[401152133,1767983440718,-553.64373807,0.00017099,2]
[401152135,1767983440727,-1000.0,0.00017112,2]
[401152137,1767983440736,-166.66,0.00017156,2]
[401152139,1767983440746,-331.48513266,0.00017171,2]
[401152141,1767983440755,-420.0,0.00017179,2]
[401152143,1767983440765,-4033.45139194,0.00017185,2]
[401152144,1767983440774,-168.0,0.00017208,2]
[401152145,1767983440783,-577.0,0.00017214,2]
[401152146,1767983440793,-152.0,0.00017234,8]
[401152147,1767983440802,-649.24,0.00017267,2]
[401152148,1767983440812,-600.0,0.00017284,2]
[401152149,1767983440822,-500.0,0.00017296,2]
[401152150,1767983440831,-1100.0,0.00017319,2]
[401152151,1767983440841,-500.0,0.00017351,2]
[401152152,1767983440850,-4033.45139194,0.00017364,2]
[401152153,1767983440859,-611.0,0.00017406,2]
[401152154,1767983440868,-152.0,0.00017444,9]
[401152155,1767983440877,-577.0,0.00017478,2]
[401152156,1767983440886,-4033.45139194,0.00017543,2]
[401152157,1767983440895,-1559.66297126,0.0001764,2]
[401152158,1767983440905,-577.0,0.00017645,2]
[401152159,1767983440914,-574.12855637,0.00017647,2]
[401152160,1767983440923,-152.0,0.00017655,10]
[401152161,1767983440932,-761.55285318,0.00017669,2]
[401152162,1767983440942,-1238.82385733,0.00017669,2]
[401152163,1767983440951,-1749.58901939,0.00017669,2]
[401152164,1767983440961,-2263.9221,0.00017669,2]
[401152165,1767983440970,-965.54,0.00017672,2]
[401152166,1767983440979,-2493.79008289,0.00017673,2]
[401152167,1767983440988,-482.82,0.00017682,2]
[401152168,1767983440999,-1000.0,0.00017709,2]
[401152169,1767983441008,-4033.45139194,0.00017721,2]
[401152170,1767983441017,-151.0,0.00017754,2]
[401152171,1767983441027,-487.0,0.00017779,2]
[401152172,1767983441036,-2000.0,0.000178,2]
[401152173,1767983441046,-1000.0,0.000178,2]
[401152174,1767983441054,-12099.97294963,0.000178,2]
[401152175,1767983441065,-200.35779431,0.00017808,2]
[401152176,1767983441075,-22119.43413187,0.0001783,2]
[401152177,1767983441084,-200.0,0.00017855,2]
[401152178,1767983441093,-2000.0,0.00017856,2]
[401152179,1767983441103,-200.0,0.00017856,2]
[401152180,1767983441114,-152.0,0.00017866,11]
[401152181,1767983441123,-151.0,0.00017877,2]
[401152182,1767983441132,-168.0,0.00017887,2]
[401152183,1767983441141,-152.97729788,0.0001789,2]
[401152184,1767983441150,-10000.0,0.000179,2]
[401152185,1767983441159,-9704.82107619,0.000179,3]
[401152186,1767983441168,-565.17771938,0.000179,2]
[401152187,1767983441178,-1000.0,0.000179,2]
[401152188,1767983441187,-4033.45139194,0.000179,2]
[401152189,1767983441197,-1864.42407422,0.000179,2]
[401152190,1767983441206,-1864.42407422,0.000179,2]
[401152191,1767983441215,-1864.42407422,0.000179,2]
[401152192,1767983441224,-1864.42407422,0.000179,2]
[401152193,1767983441233,-1864.42407422,0.000179,2]
[401152194,1767983441244,-1864.42407422,0.000179,2]
[401152195,1767983441254,-1864.42407422,0.000179,2]
[401152196,1767983441263,-1864.42407422,0.000179,2]
[401152197,1767983441272,-1864.42407422,0.000179,2]
[401152198,1767983441281,-1864.42407422,0.000179,2]
[401152199,1767983441290,-1864.42407422,0.000179,2]
[401152200,1767983441299,-1864.42407422,0.000179,2]
[401152201,1767983441308,-1864.42407422,0.000179,2]
[401152202,1767983441317,-1864.42407422,0.000179,2]
[401152203,1767983441326,-1130.70977417,0.000179,2]
[401152204,1767983441335,-24849.8864666,0.000179,2]
[401152205,1767983441344,-27199.40669553,0.000179,2]
[401152206,1767983441354,-5055.06085975,0.000179,2]
[401152207,1767983441362,-5419.66632669,0.000179,2]
[401152208,1767983441372,-500.0,0.000179,2]
[401152209,1767983441381,-500.0,0.000179,2]
[401152210,1767983441390,-500.0,0.000179,2]
[401152211,1767983441399,-500.0,0.000179,2]
[401152212,1767983441408,-500.0,0.000179,2]
[401152213,1767983441418,-500.0,0.000179,2]
[401152214,1767983441428,-500.0,0.000179,2]
[401152215,1767983441437,-500.0,0.000179,2]
[401152216,1767983441449,-500.0,0.000179,2]
[401152217,1767983441458,-500.0,0.000179,2]
[401152218,1767983441467,-500.0,0.000179,2]
[401152219,1767983441477,-500.0,0.000179,2]
[401152220,1767983441487,-500.0,0.000179,2]
[401152221,1767983441498,-500.0,0.000179,2]
[401152222,1767983441508,-500.0,0.000179,2]
[401152223,1767983441517,-500.0,0.000179,2]
[401152224,1767983441529,-500.0,0.000179,2]
[401152225,1767983441539,-500.0,0.000179,2]
[401152226,1767983441548,-500.0,0.000179,2]
[401152227,1767983441557,-500.0,0.000179,2]
[401152228,1767983441566,-3974.0,0.000179,2]
[401152229,1767983441576,-10826.24001318,0.0001791,2]
[401152230,1767983441585,-577.0,0.00017951,2]
[401152231,1767983441595,-150.0,0.00017973,2]
[401152232,1767983441604,-500.0,0.00017973,2]
[401152233,1767983441614,-500.0,0.00017973,2]
[401152234,1767983441623,-500.0,0.00017973,2]
[401152235,1767983441632,-500.0,0.00017973,2]
[401152236,1767983441641,-500.0,0.00017973,2]
[401152237,1767983441651,-279.31517583,0.00017973,2]
[401152238,1767983441664,-500.0,0.00017973,2]
[401152239,1767983441673,-500.0,0.00017973,2]
[401152240,1767983441682,-500.0,0.00017973,2]
[401152241,1767983441692,-500.0,0.00017973,2]
[401152242,1767983441702,-500.0,0.00017973,2]
[401152243,1767983441711,-500.0,0.00017973,2]
[401152244,1767983441721,-500.0,0.00017973,2]
[401152245,1767983441731,-500.0,0.00017973,2]
[401152246,1767983441743,-500.0,0.00017973,2]
[401152247,1767983441754,-500.0,0.00017973,2]
[401152248,1767983441763,-500.0,0.00017973,2]
[401152249,1767983441773,-609.94892981,0.00017973,2]
[401152250,1767983441783,-500.0,0.00017973,2]
[401152251,1767983441793,-500.0,0.00017973,2]
[401152252,1767983441803,-500.0,0.00017973,2]
[401152253,1767983441812,-500.0,0.00017973,2]
[401152254,1767983441822,-500.0,0.00017973,2]
[401152255,1767983441831,-501.05787152,0.00017973,2]
[401152256,1767983441840,-578.02071049,0.00017973,2]
[401152257,1767983441850,-429.09119552,0.00017973,2]
[401152258,1767983441859,-500.0,0.00017973,2]
[401152259,1767983441869,-500.0,0.00017973,2]
[401152260,1767983441879,-500.0,0.00017973,2]
[401152261,1767983441888,-500.0,0.00017973,2]
[401152262,1767983441898,-500.0,0.00017973,2]
[401152263,1767983441907,-500.0,0.00017973,2]
[401152264,1767983441917,-182.86859792,0.00017973,2]
[401152265,1767983441927,-500.0,0.00017973,2]
[401152266,1767983441937,-546.15438132,0.00017973,2]
[401152267,1767983441946,-500.0,0.00017973,2]
[401152268,1767983441956,-500.0,0.00017973,2]
[401152269,1767983441965,-286.84842062,0.00017973,2]
[401152270,1767983441975,-500.0,0.00017973,2]
[401152271,1767983441984,-500.0,0.00017973,2]
[401152272,1767983441993,-168.53464326,0.00017973,2]
[401152273,1767983442003,-500.0,0.00017973,2]
[401152274,1767983442012,-515.27642925,0.00017973,2]
[401152275,1767983442021,-500.0,0.00017973,2]
[401152276,1767983442031,-500.0,0.00017973,2]
[401152277,1767983442040,-195.06667749,0.00017973,2]
[401152278,1767983442050,-500.0,0.00017973,2]
[401152279,1767983442060,-500.0,0.00017973,2]
[401152280,1767983442069,-500.0,0.00017973,2]
[401152281,1767983442080,-165.3256661,0.00017973,2]
[401152282,1767983442089,-500.0,0.00017973,2]
[401152283,1767983442099,-208.06887662,0.00017973,2]
[401152284,1767983442108,-554.86072459,0.00017973,2]
[401152285,1767983442117,-398.03125352,0.00017973,2]
[401152286,1767983442127,-500.0,0.00017973,2]
[401152287,1767983442136,-500.0,0.00017973,2]
[401152288,1767983442146,-500.0,0.00017973,2]
[401152289,1767983442155,-500.0,0.00017973,2]
[401152290,1767983442164,-500.0,0.00017973,2]
[401152291,1767983442174,-500.0,0.00017973,2]
[401152292,1767983442183,-500.0,0.00017973,2]
[401152293,1767983442192,-500.0,0.00017982,2]
[401152294,1767983442202,-21662.0,0.0001799,2]
[401152295,1767983442211,-150.0,0.0001799,2]
[401152296,1767983442221,-152.97729788,0.0001799,2]
[401152297,1767983442230,-152.97729788,0.0001799,2]
[401152298,1767983442239,-11003.9091186,0.00017997,2]
[401152299,1767983442249,-19238.4068148,0.00017997,2]
[401152300,1767983442258,-221347.843637,0.00017997,2]
[401152301,1767983442268,-919.4205061,0.00017997,2]
[401152302,1767983442278,-49837.2003525,0.00017997,2]
[401152303,1767983442288,-4340.0453593,0.00017997,2]
[401152304,1767983442297,-150.0,0.00017999,2]
[401152305,1767983442306,-273.60393039,0.00017999,2]
[401152306,1767983442315,-300.0,0.00017999,2]
[401152307,1767983442325,-300.0,0.00017999,2]
[401152308,1767983442561,-300.0,0.00017999,2]
[401152309,1767983442650,-11541.22312061,0.00017999,2]
[401152310,1767983442659,-7824.46415432,0.00017999,2]
[401152311,1767983442669,-300.0,0.00017999,2]
[401152312,1767983442678,-666.0,0.00017999,2]
[401152313,1767983442687,-150.0,0.00017999,2]
[401152314,1767983442696,-300.0,0.00017999,2]
[401152315,1767983442705,-300.0,0.00017999,2]
[401152316,1767983442715,-937289.41239057,0.00018,2]
[401152317,1767983442724,-395162.52363501,0.00018,2]
[401152318,1767983442783,-13177.90426045,0.00018,2]
[401152319,1767983442815,-564.11572434,0.00018,2]
[401152320,1767983442827,-4177.18063541,0.00018,2]
[401152321,1767983442838,-386141.08476968,0.00018,2]
[401152337,1767983445686,-436.44038041,0.00016138,2]
[401152338,1767983445698,-362.36,0.00016138,2]
[401152339,1767983445714,-534.31367803,0.00016138,2]
[401152340,1767983445724,-18121.47050143,0.00018,2]
[401152341,1767983445736,-1509.27841779,0.00018,2]
[401152343,1767983446297,-1333.11405842,0.00016334,2]
[401152344,1767983446307,-269132.2637653,0.00018,2]
[401152346,1767983446450,-1355.6236504,0.00018,2]
[401152348,1767983453613,436.70286194,0.000202,30]
[401152349,1767984005350,-466.82557789,0.00011487,2]
[401152350,1767984005373,-300.0,0.00012636,2]
[401152351,1767984005397,-157.18356209,0.00012636,2]
[401152352,1767984005420,-300.0,0.00013693,2]
[401152353,1767984005446,-600.0,0.0001389,2]
[401152354,1767984005470,-441.23594566,0.0001389,2]
[401152355,1767984005495,-1000.0,0.00014986,2]
[401152356,1767984005517,-500.0,0.00015151,2]
[401152357,1767984005538,-188.96599264,0.00015799,2]
[401152358,1767984005562,-1200.0,0.00015829,2]
[401152359,1767984005585,-300.0,0.00015829,2]
[401152360,1767984005611,-320.05727346,0.0001583,2]
[401152361,1767984005635,-1066.49124679,0.0001583,2]
[401152362,1767984005659,-320.05727346,0.0001583,2]
[401152363,1767984005686,-4036.45944116,0.00015838,2]
[401152364,1767984005709,-163.87946355,0.00015899,2]
[401152365,1767984005738,-500.0,0.00015899,2]
[401152366,1767984005766,-500.0,0.00015899,2]
[401152367,1767984005788,-500.0,0.00015899,2]
[401152368,1767984005816,-365.80583596,0.00015899,2]
[401152369,1767984005839,-500.0,0.00015899,2]
[401152370,1767984005863,-187.44697681,0.00015899,2]
[401152371,1767984005892,-174186.59141053,0.000159,2]
[401152374,1767984631299,-244.0,0.00011487,2]
[401152375,1767984631309,-300.0,0.00012636,2]
[401152376,1767984631319,-250.0,0.00012636,2]
[401152377,1767984631328,-250.0,0.00013246,2]
[401152378,1767984631337,-177.41377295,0.00014635,2]
[401152379,1767984631347,-300.0,0.00014733,2]
[401152380,1767984631356,-300.0,0.00014733,2]
[401152381,1767984631365,-1200.0,0.00014733,2]
[401152382,1767984631375,-600.0,0.00014734,2]
[401152383,1767984631384,-600.0,0.00014734,2]
[401152384,1767984631394,-600.0,0.00014734,2]
[401152385,1767984631403,-600.0,0.00014734,2]
[401152386,1767984631412,-600.0,0.00014734,2]
[401152387,1767984631422,-177.41377294,0.00015237,2]
[401152388,1767984631431,-863.02,0.00015582,2]
[401152389,1767984631440,-372.50379553,0.00015699,2]
[401152390,1767984631450,-372.50379553,0.00015699,2]
[401152391,1767984631459,-165.64610147,0.00015699,2]
[401152392,1767984631468,-3632.81349708,0.00015699,2]
[401152393,1767984631477,-89589.44876567,0.00015738,2]
[401152394,1767984631488,-8363.67578055,0.00015738,2]
[401152435,1767984631968,-1429.56019822,0.00015738,2]
[401152437,1767984631980,-4067.03448011,0.00015738,2]
[401152442,1767984632013,-414.5029998,0.00015738,2]
[401152444,1767984632024,-657.85661962,0.00015738,2]
[401152446,1767984632036,-344.58,0.00015738,2]
[401152448,1767984632047,-1783.43233148,0.00015738,2]
[401152474,1767984632284,-548.73400457,0.00015738,2]
[401152478,1767984632308,-5874.72552576,0.00015738,2]
[401152480,1767984632318,-1501.99056459,0.00015738,2]
[401152482,1767984632330,-476.68734053,0.00015738,2]
[401152484,1767984632340,-1100.7542825,0.00015738,2]
[401152524,1767984637419,-3647.13980468,0.00015738,2]
[401152525,1767984637430,-336.05041608,0.00015738,2]
[401152526,1767984637443,-3617.1549748,0.00015738,2]
[401152527,1767984637577,-478.37891291,0.00015738,2]
[401152528,1767984637650,-1221.00880848,0.00015738,2]
[401152529,1767984637661,-61599.99999996,0.00015738,2]
[401152628,1767984639526,-1358.10438257,0.00015738,2]
[401152629,1767984639537,-4365.43074627,0.00015738,2]
[401152630,1767984639548,-372.34049029,0.00015738,2]
[401152631,1767984639558,-393.66239999,0.00015738,2]
[401152632,1767984639569,-913.48124247,0.00015738,2]
[401152633,1767984639585,-596.298,0.00015738,2]
[401152634,1767984639596,-1003.06225718,0.00015738,2]
[401152635,1767984639630,-803944.90467092,0.00015738,2]
[401152636,1767984639639,-178.0,0.00015799,2]
[401152637,1767984639648,-776.6986,0.000158,2]
[401152638,1767984639657,-236.5897,0.000158,2]
[401152639,1767984639666,-2500.0,0.000158,2]
[401152640,1767984639675,-1146.37769689,0.00015838,2]
[401152641,1767984639685,-177.41377294,0.00015838,2]
[401152642,1767984639694,-282.04,0.00015888,2]
[401152643,1767984639703,-500.0,0.00015888,2]
[401152644,1767984639712,-500.0,0.00015888,2]
[401152645,1767984639722,-500.0,0.00015888,2]
[401152646,1767984639730,-500.0,0.00015888,2]
[401152647,1767984639739,-500.0,0.00015888,2]
[401152648,1767984639748,-500.0,0.00015888,2]
[401152649,1767984639757,-420.18705832,0.00015888,2]
[401152650,1767984639768,-500.0,0.00015888,2]
[401152651,1767984639778,-619.57426083,0.00015888,2]
[401152652,1767984639787,-500.0,0.00015888,2]
[401152653,1767984639795,-500.0,0.00015888,2]
[401152654,1767984639806,-500.0,0.00015888,2]
[401152655,1767984639815,-500.0,0.00015888,2]
[401152656,1767984639823,-500.0,0.00015888,2]
[401152657,1767984639833,-500.0,0.00015888,2]
[401152658,1767984639842,-157.79856203,0.00015888,2]
[401152660,1767984639851,-500.0,0.00015888,2]
[401152661,1767984639860,-500.0,0.00015888,2]
[401152662,1767984639869,-195.74260832,0.00015888,2]
[401152663,1767984639878,-5469.63784536,0.00015889,2]
[401152664,1767984639887,-500.0,0.0001589,2]
[401152665,1767984639897,-500.0,0.0001589,2]
[401152666,1767984639906,-151.0,0.0001589,2]
[401152667,1767984639916,-500.0,0.0001589,2]
[401152668,1767984639925,-151.0,0.0001589,2]
[401152669,1767984639934,-500.0,0.0001589,2]
[401152670,1767984639943,-500.0,0.0001589,2]
[401152672,1767984639952,-500.0,0.0001589,2]
[401152673,1767984639961,-500.0,0.0001589,2]
[401152674,1767984639970,-151.0,0.0001589,2]
[401152675,1767984639979,-500.0,0.0001589,2]
[401152676,1767984639988,-151.0,0.0001589,2]
[401152677,1767984639997,-500.0,0.0001589,2]
[401152678,1767984640007,-500.0,0.0001589,2]
[401152679,1767984640016,-151.0,0.0001589,2]
[401152680,1767984640025,-500.0,0.0001589,2]
[401152681,1767984640034,-500.0,0.0001589,2]
[401152682,1767984640043,-151.0,0.0001589,2]
[401152683,1767984640052,-500.0,0.0001589,2]
[401152684,1767984640061,-500.0,0.0001589,2]
[401152685,1767984640071,-151.0,0.0001589,2]
[401152686,1767984640080,-500.0,0.0001589,2]
[401152687,1767984640089,-500.0,0.0001589,2]
[401152688,1767984640099,-500.0,0.0001589,2]
[401152689,1767984640110,-500.0,0.0001589,2]
[401152690,1767984640120,-151.0,0.0001589,2]
[401152691,1767984640129,-500.0,0.0001589,2]
[401152692,1767984640139,-151.0,0.0001589,2]
[401152693,1767984640150,-500.0,0.0001589,2]
[401152694,1767984640160,-151.0,0.0001589,2]
[401152695,1767984640170,-151.0,0.0001589,2]
[401152696,1767984640179,-151.0,0.0001589,2]
[401152697,1767984640188,-151.0,0.0001589,2]
[401152698,1767984640197,-151.0,0.0001589,2]
[401152699,1767984640206,-626.22881488,0.0001589,2]
[401152700,1767984640215,-151.0,0.0001589,2]
[401152701,1767984640224,-151.0,0.0001589,2]
[401152702,1767984640233,-151.0,0.0001589,2]
[401152703,1767984640242,-151.0,0.0001589,2]
[401152704,1767984640251,-151.0,0.0001589,2]
[401152705,1767984640261,-151.0,0.0001589,2]
[401152706,1767984640270,-151.0,0.0001589,2]
[401152707,1767984640279,-151.0,0.0001589,2]
[401152708,1767984640288,-200.0,0.0001589,2]
[401152709,1767984640297,-151.0,0.0001589,2]
[401152710,1767984640306,-151.0,0.0001589,2]
[401152711,1767984640315,-151.0,0.0001589,2]
[401152712,1767984640324,-151.56294487,0.0001589,2]
[401152713,1767984640333,-500.0,0.00015899,2]
[401152714,1767984640342,-500.0,0.00015899,2]
[401152715,1767984640351,-549.36394183,0.00015899,2]
[401152716,1767984640360,-150.0,0.00015899,2]
[401152717,1767984640370,-404.5706683,0.00015938,2]
[401152718,1767984640379,-151.0,0.00015941,2]
[401152719,1767984640388,-3632.81349701,0.00015944,2]
[401152720,1767984640397,-372.50379547,0.00016013,2]
[401152721,1767984640406,-372.50379547,0.00016013,2]
[401152722,1767984640416,-214.43976733,0.00016038,2]
[401152723,1767984640427,-1146.37769689,0.00016067,2]
[401152724,1767984640438,-282.04,0.00016162,2]
[401152725,1767984640449,-3632.81349701,0.00016188,2]
[401152726,1767984640458,-1680.0,0.00016207,2]
[401152727,1767984640467,-1000.0,0.00016238,2]
[401152728,1767984640476,-150.0,0.00016272,2]
[401152729,1767984640485,-200.0,0.00016272,2]
[401152730,1767984640494,-1146.37769689,0.00016296,2]
[401152731,1767984640503,-1506.7,0.00016313,2]
[401152732,1767984640513,-372.50379547,0.00016328,2]
[401152733,1767984640522,-372.50379547,0.00016328,2]
[401152734,1767984640531,-438.4627963,0.00016338,2]
[401152735,1767984640540,-398.9473792,0.00016338,2]
[401152736,1767984640549,-500.0,0.00016338,2]
[401152737,1767984640558,-597.23624248,0.00016338,2]
[401152738,1767984640567,-412.54562507,0.00016345,2]
[401152739,1767984640576,-947.78096177,0.000164,2]
[401152740,1767984640585,-1541.76254747,0.000164,2]
[401152741,1767984640594,-2177.42886336,0.000164,2]
[401152742,1767984640603,-2817.54,0.000164,2]
[401152743,1767984640612,-1555.76,0.00016402,2]
[401152744,1767984640621,-3632.81349701,0.00016433,2]
[401152745,1767984640632,-282.04,0.00016436,2]
[401152746,1767984640641,-11419.86,0.00016438,2]
[401152747,1767984640651,-200.0,0.00016454,2]
[401152748,1767984640661,-165.71,0.00016501,2]
[401152749,1767984640670,-1146.37769689,0.00016525,2]
[401152750,1767984640680,-372.50379547,0.00016642,2]
[401152751,1767984640688,-3632.81349701,0.00016677,2]
[401152752,1767984640698,-1000.0,0.00016697,2]
[401152753,1767984640707,-282.04,0.0001671,2]
[401152754,1767984640716,-159.9,0.00016712,2]
[401152755,1767984640725,-661.58,0.00016713,2]
[401152756,1767984640734,-482.82,0.00016713,2]
[401152757,1767984640743,-661.58,0.00016713,2]
[401152758,1767984640752,-661.58,0.00016713,2]
[401152759,1767984640764,-661.58,0.00016713,2]
[401152760,1767984640775,-661.58,0.00016713,2]
[401152761,1767984640784,-661.58,0.00016723,2]
[401152762,1767984640793,-1146.37769689,0.00016754,2]
[401152763,1767984640803,-165.64610146,0.00016798,2]
[401152764,1767984640813,-3632.81349701,0.00016922,2]
[401152765,1767984640822,-152.0,0.00016963,3]
[401152766,1767984640831,-1146.37769689,0.00016984,2]
[401152767,1767984640841,-282.07,0.00016984,2]
[401152768,1767984640850,-553.64373807,0.00017099,2]
[401152769,1767984640859,-322.6107,0.00017099,2]
[401152770,1767984640868,-159.10718444,0.00017132,2]
[401152771,1767984640880,-183.0,0.00017151,2]
[401152772,1767984640889,-3632.81349701,0.00017166,2]
[401152773,1767984640898,-1146.37769689,0.00017213,2]
[401152774,1767984640907,-183.0,0.0001727,2]
[401152775,1767984640916,-500.0,0.00017296,2]
[401152776,1767984640925,-500.0,0.00017351,2]
[401152777,1767984640934,-182.0,0.00017364,2]
[401152778,1767984640943,-183.0,0.00017384,2]
[401152779,1767984640952,-611.0,0.00017406,2]
[401152780,1767984640961,-3632.81349701,0.00017411,2]
[401152781,1767984640970,-1146.37769689,0.00017442,2]
[401152782,1767984640980,-182.0,0.0001752,2]
[401152783,1767984640989,-183.0,0.0001756,2]
[401152784,1767984640999,-182.0,0.00017563,2]
[401152785,1767984641010,-183.0,0.00017607,2]
[401152786,1767984641019,-2082.29932478,0.0001764,2]
[401152787,1767984641028,-574.12855637,0.00017647,2]
[401152788,1767984641039,-3632.81349701,0.00017655,2]
[401152789,1767984641050,-1146.37769689,0.00017671,2]
[401152790,1767984641059,-661.58,0.00017672,2]
[401152791,1767984641068,-661.58,0.00017672,2]
[401152792,1767984641077,-661.58,0.00017672,2]
[401152793,1767984641086,-661.58,0.00017672,2]
[401152794,1767984641095,-661.58,0.00017672,2]
[401152795,1767984641104,-1323.16,0.00017672,2]
[401152796,1767984641114,-661.58,0.00017672,2]
[401152797,1767984641125,-661.58,0.00017672,2]
[401152798,1767984641134,-661.58,0.00017672,2]
[401152799,1767984641144,-661.58,0.00017672,2]
[401152800,1767984641153,-661.58,0.00017672,2]
[401152801,1767984641163,-661.58,0.00017672,2]
[401152802,1767984641172,-1153.04,0.00017672,2]
[401152803,1767984641182,-661.58,0.00017672,2]
[401152804,1767984641191,-447.0,0.00017675,2]
[401152805,1767984641200,-447.0,0.00017677,2]
[401152806,1767984641210,-165.71,0.0001768,2]
[401152807,1767984641219,-1000.0,0.000177,2]
[401152808,1767984641228,-151.0,0.00017759,2]
[401152809,1767984641238,-1000.0,0.0001779,2]
[401152810,1767984641248,-2000.0,0.000178,2]
[401152811,1767984641258,-611.41902284,0.000178,2]
[401152812,1767984641268,-1000.0,0.000178,2]
[401152813,1767984641277,-183.0,0.00017807,2]
[401152814,1767984641286,-200.35779431,0.00017808,2]
[401152815,1767984641295,-4124.7714708,0.00017818,2]
[401152816,1767984641305,-47457.634063,0.00017818,2]
[401152817,1767984641314,-2351.0,0.00017827,2]
[401152818,1767984641323,-182.0,0.00017849,2]
[401152819,1767984641333,-200.0,0.00017855,2]
[401152820,1767984641342,-2000.0,0.00017856,2]
[401152821,1767984641351,-200.0,0.00017856,2]
[401152822,1767984641360,-151.0,0.0001788,2]
[401152823,1767984641370,-152.97729788,0.0001789,2]
[401152824,1767984641379,-165.64610146,0.00017897,2]
[401152825,1767984641389,-10000.0,0.000179,2]
[401152826,1767984641398,-9704.82107619,0.000179,3]